[Event "Late-Titled-Tuesday-Blitz-March-12-2024"]
[Site "Chess.com"]
[Date "2024.03.12"]
[Round "1"]
[White "tptagain"]
[Black "Redzishchess"]
[Result "1-0"]
[WhiteElo "2957"]
[BlackElo "2534"]
[TimeControl "180+1"]
[EndTime "14:07:01 PDT"]
[Termination "tptagain won by resignation"]

1. Nf3 {[%clk 0:03:00.9]} 1... Nf6 {[%clk 0:02:56.4]} 2. b3 {[%clk 0:03:00.8]}
2... b6 {[%clk 0:02:56.1]} 3. Bb2 {[%clk 0:03:00.7]} 3... g6 {[%clk 0:02:56.4]}
4. g3 {[%clk 0:03:00.6]} 4... Bg7 {[%clk 0:02:56.6]} 5. Bg2 {[%clk 0:03:01.1]}
5... Bb7 {[%clk 0:02:57.2]} 6. O-O {[%clk 0:03:01.4]} 6... O-O {[%clk
0:02:57.6]} 7. c4 {[%clk 0:03:02]} 7... c5 {[%clk 0:02:58]} 8. d4 {[%clk
0:03:02.7]} 8... cxd4 {[%clk 0:02:58.4]} 9. Qxd4 {[%clk 0:03:02.6]} 9... d6
{[%clk 0:02:59]} 10. Rd1 {[%clk 0:03:01.8]} 10... Nbd7 {[%clk 0:02:59.1]} 11.
Qc3 {[%clk 0:02:37.9]} 11... Rc8 {[%clk 0:02:50.9]} 12. Qe1 {[%clk 0:02:35.9]}
12... Nc5 {[%clk 0:02:43.7]} 13. Na3 {[%clk 0:02:34.2]} 13... Nce4 {[%clk
0:02:28.3]} 14. Nd4 {[%clk 0:01:56.7]} 14... Qc7 {[%clk 0:02:12.8]} 15. Nab5
{[%clk 0:01:51.7]} 15... Qb8 {[%clk 0:02:12.4]} 16. f3 {[%clk 0:01:51]} 16...
Nc5 {[%clk 0:02:07.7]} 17. e4 {[%clk 0:01:49.8]} 17... Nfd7 {[%clk 0:01:53.8]}
18. Kh1 {[%clk 0:01:44.5]} 18... h5 {[%clk 0:01:48.1]} 19. Nc3 {[%clk
0:01:40.8]} 19... h4 {[%clk 0:01:35.4]} 20. gxh4 {[%clk 0:01:40.9]} 20... Ne5
{[%clk 0:01:04.5]} 21. Qe2 {[%clk 0:01:38.5]} 21... f5 {[%clk 0:00:44.8]} 22.
Nd5 {[%clk 0:01:27.8]} 22... Bxd5 {[%clk 0:00:41.8]} 23. exd5 {[%clk 0:01:27.5]}
23... f4 {[%clk 0:00:32.4]} 24. Bh3 {[%clk 0:01:27.2]} 24... Rf7 {[%clk
0:00:16.4]} 25. Ne6 {[%clk 0:01:19.6]} 25... b5 {[%clk 0:00:06]} 26. Ng5 {[%clk
0:01:19.3]} 26... bxc4 {[%clk 0:00:05.4]} 27. Bxc8 {[%clk 0:01:18.4]} 27... Qxc8
{[%clk 0:00:05.6]} 28. Nxf7 {[%clk 0:01:17.9]} 28... Kxf7 {[%clk 0:00:06.5]} 29.
bxc4 {[%clk 0:01:16.6]} 29... Qh3 {[%clk 0:00:06.7]} 30. Bxe5 {[%clk 0:01:16.9]}
30... Bxe5 {[%clk 0:00:06.9]} 31. Rab1 {[%clk 0:01:15.7]} 31... Qxh4 {[%clk
0:00:04.5]} 32. Rg1 {[%clk 0:01:12.1]} 32... g5 {[%clk 0:00:02.6]} 33. Rb5
{[%clk 0:01:01.2]} 33... Bf6 {[%clk 0:00:02.6]} 34. Rxc5 {[%clk 0:00:45.6]}
34... dxc5 {[%clk 0:00:03.5]} 35. Re1 {[%clk 0:00:43.9]} 35... Kg7 {[%clk
0:00:02.9]} 36. Qe6 {[%clk 0:00:42.7]} 36... Qh7 {[%clk 0:00:02.3]} 37. Qxe7+
{[%clk 0:00:37.9]} 37... Bxe7 {[%clk 0:00:01.5]} 38. Rxe7+ {[%clk 0:00:38.8]}
38... Kg6 {[%clk 0:00:02.4]} 39. Rxh7 {[%clk 0:00:39.4]} 39... Kxh7 {[%clk
0:00:03.3]} 40. d6 {[%clk 0:00:39.4]} 1-0

[Event "Late-Titled-Tuesday-Blitz-March-12-2024"]
[Site "Chess.com"]
[Date "2024.03.12"]
[Round "1"]
[White "Vladimir_Zakhartsov"]
[Black "Er_is_geen_hoop_meer"]
[Result "1-0"]
[WhiteElo "2910"]
[BlackElo "2518"]
[TimeControl "180+1"]
[EndTime "14:07:01 PDT"]
[Termination "Vladimir_Zakhartsov won by resignation"]

1. d4 {[%clk 0:02:55.9]} 1... d6 {[%clk 0:02:57.4]} 2. e4 {[%clk 0:02:55.6]}
2... Nf6 {[%clk 0:02:56.8]} 3. Nc3 {[%clk 0:02:55.6]} 3... e5 {[%clk 0:02:57.3]}
4. Nf3 {[%clk 0:02:54.5]} 4... Nbd7 {[%clk 0:02:57.4]} 5. Bc4 {[%clk 0:02:53.4]}
5... Be7 {[%clk 0:02:57.8]} 6. a4 {[%clk 0:02:53.5]} 6... a5 {[%clk 0:02:57.8]}
7. O-O {[%clk 0:02:53.1]} 7... O-O {[%clk 0:02:56.4]} 8. h3 {[%clk 0:02:51.3]}
8... c6 {[%clk 0:02:56.8]} 9. Re1 {[%clk 0:02:50.7]} 9... h6 {[%clk 0:02:56.5]}
10. Be3 {[%clk 0:02:49.7]} 10... Qc7 {[%clk 0:02:56.8]} 11. Qd2 {[%clk
0:02:47.1]} 11... Re8 {[%clk 0:02:57.1]} 12. Bxh6 {[%clk 0:02:28.8]} 12... gxh6
{[%clk 0:02:58]} 13. Qxh6 {[%clk 0:02:28.9]} 13... d5 {[%clk 0:02:49.7]} 14.
exd5 {[%clk 0:02:19.5]} 14... cxd5 {[%clk 0:02:50.6]} 15. Bxd5 {[%clk
0:02:11.1]} 15... Nxd5 {[%clk 0:02:44.7]} 16. Nxd5 {[%clk 0:02:12]} 16... Qd6
{[%clk 0:02:42.2]} 17. Nxe7+ {[%clk 0:02:05.5]} 17... Qxe7 {[%clk 0:02:31.4]}
18. Re4 {[%clk 0:01:52.1]} 18... f5 {[%clk 0:02:05.4]} 19. Qg6+ {[%clk
0:01:51.2]} 19... Kf8 {[%clk 0:01:58.9]} 20. Rh4 {[%clk 0:01:32.6]} 20... Qg7
{[%clk 0:01:56.4]} 21. Qd6+ {[%clk 0:01:26]} 21... Kg8 {[%clk 0:01:51.4]} 22.
dxe5 {[%clk 0:01:21.5]} 22... Nxe5 {[%clk 0:01:44.9]} 23. Nxe5 {[%clk
0:01:18.8]} 23... Qxe5 {[%clk 0:01:18.1]} 24. Qg6+ {[%clk 0:01:16.3]} 24... Kf8
{[%clk 0:01:18.8]} 25. Rh7 {[%clk 0:00:59.5]} 25... Be6 {[%clk 0:01:17.8]} 26.
Rxb7 {[%clk 0:00:48.2]} 26... Bd5 {[%clk 0:01:09.1]} 27. Rb5 {[%clk 0:00:38.8]}
27... Qe4 {[%clk 0:00:56.1]} 28. Rd1 {[%clk 0:00:33.5]} 28... Be6 {[%clk
0:00:49.1]} 29. Rd3 {[%clk 0:00:27.3]} 29... Ra6 {[%clk 0:00:42.3]} 30. Qh6+
{[%clk 0:00:26.3]} 30... Kf7 {[%clk 0:00:34.3]} 31. Rg3 {[%clk 0:00:23.1]} 31...
Ke7 {[%clk 0:00:29.8]} 32. Rg7+ {[%clk 0:00:21.5]} 32... Kd6 {[%clk 0:00:30]}
33. Qd2+ {[%clk 0:00:17.5]} 33... Bd5 {[%clk 0:00:29.4]} 34. Rxd5+ {[%clk
0:00:15.8]} 34... Qxd5 {[%clk 0:00:29]} 35. Rd7+ {[%clk 0:00:16.1]} 35... Kxd7
{[%clk 0:00:29.9]} 36. Qxd5+ {[%clk 0:00:16.4]} 36... Kc7 {[%clk 0:00:30.8]} 37.
Qc5+ {[%clk 0:00:14.6]} 37... Rc6 {[%clk 0:00:30.3]} 38. Qxa5+ {[%clk
0:00:14.7]} 38... Kb7 {[%clk 0:00:30.4]} 39. Qxf5 {[%clk 0:00:13.7]} 39... Re1+
{[%clk 0:00:31.1]} 40. Kh2 {[%clk 0:00:13.7]} 40... Re2 {[%clk 0:00:32]} 41.
Qb5+ {[%clk 0:00:13.7]} 41... Ka7 {[%clk 0:00:31.7]} 42. Qxe2 {[%clk 0:00:14.4]}
42... Ka8 {[%clk 0:00:31]} 43. Qe4 {[%clk 0:00:14.1]} 43... Kb8 {[%clk
0:00:30.9]} 44. Qxc6 {[%clk 0:00:14.1]} 1-0

[Event "Late-Titled-Tuesday-Blitz-March-12-2024"]
[Site "Chess.com"]
[Date "2024.03.12"]
[Round "1"]
[White "KyronGriffith"]
[Black "emeli_chess"]
[Result "1-0"]
[WhiteElo "2704"]
[BlackElo "2378"]
[TimeControl "180+1"]
[EndTime "14:07:02 PDT"]
[Termination "KyronGriffith won by resignation"]

1. e4 {[%clk 0:03:00.9]} 1... e5 {[%clk 0:02:59]} 2. Nf3 {[%clk 0:03:00.2]} 2...
Nc6 {[%clk 0:02:59.2]} 3. Nc3 {[%clk 0:03:00.9]} 3... Nf6 {[%clk 0:02:58.3]} 4.
d4 {[%clk 0:03:01.6]} 4... exd4 {[%clk 0:02:56.6]} 5. Nxd4 {[%clk 0:03:02.5]}
5... Bb4 {[%clk 0:02:56]} 6. Nxc6 {[%clk 0:03:02.6]} 6... bxc6 {[%clk
0:02:55.6]} 7. Bd3 {[%clk 0:03:03.3]} 7... d5 {[%clk 0:02:55.2]} 8. exd5 {[%clk
0:03:04.2]} 8... cxd5 {[%clk 0:02:54.8]} 9. O-O {[%clk 0:03:04.8]} 9... O-O
{[%clk 0:02:54.6]} 10. Bg5 {[%clk 0:03:05.1]} 10... Be6 {[%clk 0:02:43.2]} 11.
Qf3 {[%clk 0:03:04.2]} 11... h6 {[%clk 0:02:35.8]} 12. Bxf6 {[%clk 0:03:03.2]}
12... Qxf6 {[%clk 0:02:34.9]} 13. Qxf6 {[%clk 0:03:03.7]} 13... gxf6 {[%clk
0:02:33.8]} 14. Ne2 {[%clk 0:03:04.4]} 14... Rfb8 {[%clk 0:02:13.3]} 15. b3
{[%clk 0:03:01.9]} 15... Ba3 {[%clk 0:02:07.3]} 16. Rad1 {[%clk 0:02:58.4]}
16... a5 {[%clk 0:01:56.1]} 17. Nd4 {[%clk 0:02:55.7]} 17... Bb2 {[%clk
0:01:43.1]} 18. Nf5 {[%clk 0:02:42.4]} 18... Bxf5 {[%clk 0:01:40.3]} 19. Bxf5
{[%clk 0:02:43.3]} 19... c6 {[%clk 0:01:39.3]} 20. a4 {[%clk 0:02:42]} 20... Rb4
{[%clk 0:01:37]} 21. Rd3 {[%clk 0:02:38.6]} 21... Rd8 {[%clk 0:01:23.3]} 22. Rh3
{[%clk 0:02:32.5]} 22... Kg7 {[%clk 0:01:21.6]} 23. Re1 {[%clk 0:02:31.2]} 23...
Rf4 {[%clk 0:01:15.5]} 24. Bd3 {[%clk 0:02:22.9]} 24... Bd4 {[%clk 0:01:02.7]}
25. Re2 {[%clk 0:02:22.5]} 25... Rd6 {[%clk 0:01:00.5]} 26. g3 {[%clk
0:02:18.8]} 26... Rg4 {[%clk 0:00:42.6]} 27. Kg2 {[%clk 0:02:12.5]} 27... Bc5
{[%clk 0:00:40.3]} 28. Kf3 {[%clk 0:02:05.3]} 28... Rg5 {[%clk 0:00:37.7]} 29.
Re8 {[%clk 0:02:02.7]} 29... Re6 {[%clk 0:00:37]} 30. Ra8 {[%clk 0:02:01.2]}
30... Bb4 {[%clk 0:00:33.7]} 31. Rh4 {[%clk 0:01:59.7]} 31... Re1 {[%clk
0:00:27.6]} 32. Rf4 {[%clk 0:01:49.7]} 32... Rge5 {[%clk 0:00:25.7]} 33. h4
{[%clk 0:01:48.5]} 33... Rh1 {[%clk 0:00:24]} 34. Rg4+ {[%clk 0:01:48.8]} 34...
Rg5 {[%clk 0:00:19.3]} 35. hxg5 {[%clk 0:01:49.4]} 35... hxg5 {[%clk 0:00:19.2]}
36. Rxb4 {[%clk 0:01:20.9]} 36... axb4 {[%clk 0:00:18.5]} 37. a5 {[%clk
0:01:21.8]} 37... Ra1 {[%clk 0:00:16.9]} 38. a6 {[%clk 0:01:22.5]} 38... c5
{[%clk 0:00:16.4]} 39. a7 {[%clk 0:01:22.3]} 39... Ra2 {[%clk 0:00:13.5]} 40.
Bb5 {[%clk 0:01:22.2]} 40... Ra3 {[%clk 0:00:12.4]} 41. Bc6 {[%clk 0:01:22.5]}
41... c4 {[%clk 0:00:12.6]} 42. Bxd5 {[%clk 0:01:19.9]} 42... c3 {[%clk
0:00:12.5]} 43. Ke3 {[%clk 0:01:06.4]} 43... Ra2 {[%clk 0:00:13.4]} 44. Kd3
{[%clk 0:01:06.8]} 44... f5 {[%clk 0:00:13.2]} 45. f3 {[%clk 0:01:06.6]} 45...
Kf6 {[%clk 0:00:13.1]} 46. Kc4 {[%clk 0:01:03.2]} 46... Rxc2 {[%clk 0:00:11.9]}
47. Re8 {[%clk 0:00:52.9]} 47... Ra2 {[%clk 0:00:11.9]} 48. a8=Q {[%clk
0:00:53.6]} 48... c2 {[%clk 0:00:12]} 49. Re1 {[%clk 0:00:50.9]} 49... Rxa8
{[%clk 0:00:11.2]} 50. Bxa8 {[%clk 0:00:51.8]} 1-0

[Event "Late-Titled-Tuesday-Blitz-March-12-2024"]
[Site "Chess.com"]
[Date "2024.03.12"]
[Round "1"]
[White "mightysmasher"]
[Black "newauto"]
[Result "1-0"]
[WhiteElo "2585"]
[BlackElo "2117"]
[TimeControl "180+1"]
[EndTime "14:07:05 PDT"]
[Termination "mightysmasher won by checkmate"]

1. e4 {[%clk 0:03:00.9]} 1... c6 {[%clk 0:02:59.1]} 2. d4 {[%clk 0:03:00.7]}
2... d5 {[%clk 0:02:57.4]} 3. Nd2 {[%clk 0:03:01.1]} 3... dxe4 {[%clk
0:02:56.3]} 4. Nxe4 {[%clk 0:03:02]} 4... Bf5 {[%clk 0:02:54.9]} 5. Ng3 {[%clk
0:03:02.4]} 5... Bg6 {[%clk 0:02:55.4]} 6. h4 {[%clk 0:03:03]} 6... h6 {[%clk
0:02:55.3]} 7. Nf3 {[%clk 0:03:02.1]} 7... Nd7 {[%clk 0:02:54.9]} 8. Bd3 {[%clk
0:02:59]} 8... Bxd3 {[%clk 0:02:54.2]} 9. Qxd3 {[%clk 0:02:59.9]} 9... e6 {[%clk
0:02:52.7]} 10. c3 {[%clk 0:03:00]} 10... Ngf6 {[%clk 0:02:51.9]} 11. Bd2 {[%clk
0:02:58.8]} 11... Bd6 {[%clk 0:02:48]} 12. Ne4 {[%clk 0:02:57.9]} 12... Nxe4
{[%clk 0:02:47.7]} 13. Qxe4 {[%clk 0:02:58.8]} 13... Nf6 {[%clk 0:02:48.2]} 14.
Qd3 {[%clk 0:02:57.4]} 14... Qc7 {[%clk 0:02:46.9]} 15. O-O-O {[%clk 0:02:55.7]}
15... Bf4 {[%clk 0:02:46.6]} 16. Rhe1 {[%clk 0:02:53.4]} 16... O-O-O {[%clk
0:02:35.5]} 17. Kb1 {[%clk 0:02:52.5]} 17... Bxd2 {[%clk 0:02:35.1]} 18. Qxd2
{[%clk 0:02:51.5]} 18... Kb8 {[%clk 0:02:26.6]} 19. g3 {[%clk 0:02:46.9]} 19...
c5 {[%clk 0:02:23.1]} 20. Qc2 {[%clk 0:02:45.7]} 20... cxd4 {[%clk 0:01:57.6]}
21. Nxd4 {[%clk 0:02:44.2]} 21... a6 {[%clk 0:01:45.6]} 22. a3 {[%clk
0:02:41.1]} 22... Qc4 {[%clk 0:01:36.7]} 23. Qc1 {[%clk 0:02:35.2]} 23... Nd5
{[%clk 0:01:32.9]} 24. Qc2 {[%clk 0:02:29]} 24... Rc8 {[%clk 0:01:25.2]} 25. Qe2
{[%clk 0:02:23.8]} 25... Qxe2 {[%clk 0:01:23.6]} 26. Nxe2 {[%clk 0:02:22.8]}
26... Rhd8 {[%clk 0:01:19.4]} 27. Nd4 {[%clk 0:02:22]} 27... Nf6 {[%clk
0:01:08.9]} 28. f3 {[%clk 0:02:17.1]} 28... Nd5 {[%clk 0:01:06.6]} 29. Ka1
{[%clk 0:02:13.7]} 29... Nb6 {[%clk 0:01:06.4]} 30. f4 {[%clk 0:02:11.8]} 30...
Nd5 {[%clk 0:01:04.1]} 31. Nf3 {[%clk 0:02:10.5]} 31... Nf6 {[%clk 0:00:35.8]}
32. Ne5 {[%clk 0:02:08.6]} 32... Rxd1+ {[%clk 0:00:35]} 33. Rxd1 {[%clk
0:02:08.4]} 33... Rc7 {[%clk 0:00:32.5]} 34. g4 {[%clk 0:02:05.1]} 34... g6
{[%clk 0:00:27.8]} 35. Rd8+ {[%clk 0:01:58.6]} 35... Ka7 {[%clk 0:00:27.6]} 36.
Rf8 {[%clk 0:01:55.1]} 36... h5 {[%clk 0:00:22.9]} 37. g5 {[%clk 0:01:50.1]}
37... Nd5 {[%clk 0:00:22.7]} 38. Nxf7 {[%clk 0:01:43.6]} 38... Nxf4 {[%clk
0:00:22.5]} 39. Nd6 {[%clk 0:01:36]} 39... Ng2 {[%clk 0:00:21.7]} 40. Nc8+
{[%clk 0:01:35.6]} 40... Kb8 {[%clk 0:00:21.2]} 41. Ne7+ {[%clk 0:01:35.9]}
41... Ka7 {[%clk 0:00:20]} 42. Nxg6 {[%clk 0:01:35.6]} 42... Rc4 {[%clk
0:00:17.2]} 43. Rf6 {[%clk 0:01:22.3]} 43... Nxh4 {[%clk 0:00:17]} 44. Nxh4
{[%clk 0:01:22.3]} 44... Rxh4 {[%clk 0:00:17.9]} 45. Rxe6 {[%clk 0:01:22.8]}
45... Rg4 {[%clk 0:00:18.2]} 46. Rg6 {[%clk 0:01:22.6]} 46... h4 {[%clk
0:00:18.4]} 47. Ka2 {[%clk 0:01:23.2]} 47... h3 {[%clk 0:00:18.6]} 48. Rh6
{[%clk 0:01:23.8]} 48... Rxg5 {[%clk 0:00:18.8]} 49. Rxh3 {[%clk 0:01:24.2]}
49... a5 {[%clk 0:00:19.3]} 50. Kb3 {[%clk 0:01:24.1]} 50... Ka6 {[%clk
0:00:18.1]} 51. c4 {[%clk 0:01:23.8]} 51... Rg4 {[%clk 0:00:17.9]} 52. Rh6+
{[%clk 0:01:23]} 52... Ka7 {[%clk 0:00:15.4]} 53. Rh5 {[%clk 0:01:22]} 53... Ka6
{[%clk 0:00:14.9]} 54. Kc3 {[%clk 0:01:21.6]} 54... a4 {[%clk 0:00:13.1]} 55.
Kb4 {[%clk 0:01:20.4]} 55... Rf4 {[%clk 0:00:13.7]} 56. Ra5+ {[%clk 0:01:19.3]}
56... Kb6 {[%clk 0:00:13.4]} 57. Rxa4 {[%clk 0:01:19.9]} 57... Rf2 {[%clk
0:00:13.1]} 58. b3 {[%clk 0:01:19.1]} 58... Rc2 {[%clk 0:00:13.6]} 59. Ra8
{[%clk 0:01:18.4]} 59... Kc6 {[%clk 0:00:13.8]} 60. a4 {[%clk 0:01:18.3]} 60...
Kb6 {[%clk 0:00:14]} 61. Rc8 {[%clk 0:01:16.8]} 61... Ka6 {[%clk 0:00:13.2]} 62.
a5 {[%clk 0:01:16]} 62... Rb2 {[%clk 0:00:12.1]} 63. Ra8# {[%clk 0:01:15.7]} 1-0

[Event "Late-Titled-Tuesday-Blitz-March-12-2024"]
[Site "Chess.com"]
[Date "2024.03.12"]
[Round "1"]
[White "DeArron_Fox"]
[Black "Grischuk"]
[Result "0-1"]
[WhiteElo "2557"]
[BlackElo "3069"]
[TimeControl "180+1"]
[EndTime "14:07:07 PDT"]
[Termination "Grischuk won on time"]

1. d4 {[%clk 0:02:59.4]} 1... e6 {[%clk 0:02:59.5]} 2. c4 {[%clk 0:02:53.6]}
2... b6 {[%clk 0:02:59.5]} 3. e4 {[%clk 0:02:45.5]} 3... Bb4+ {[%clk 0:02:58.8]}
4. Bd2 {[%clk 0:02:43]} 4... Bxd2+ {[%clk 0:02:58.8]} 5. Qxd2 {[%clk 0:02:42.2]}
5... d5 {[%clk 0:02:58.7]} 6. cxd5 {[%clk 0:02:08.3]} 6... exd5 {[%clk
0:02:59.6]} 7. e5 {[%clk 0:02:08.9]} 7... Ne7 {[%clk 0:02:59.2]} 8. Bd3 {[%clk
0:02:05]} 8... c5 {[%clk 0:02:51.4]} 9. Ne2 {[%clk 0:01:58.1]} 9... Nbc6 {[%clk
0:02:49.9]} 10. Nbc3 {[%clk 0:01:54.6]} 10... cxd4 {[%clk 0:02:40]} 11. Nb5
{[%clk 0:01:52]} 11... Nxe5 {[%clk 0:02:39.8]} 12. O-O {[%clk 0:01:46.3]} 12...
O-O {[%clk 0:02:33.8]} 13. Nbxd4 {[%clk 0:01:41.6]} 13... Bg4 {[%clk 0:02:03.5]}
14. Nf4 {[%clk 0:01:27.6]} 14... Qd6 {[%clk 0:01:53.9]} 15. h3 {[%clk
0:01:17.1]} 15... Bd7 {[%clk 0:01:53.3]} 16. Rfe1 {[%clk 0:01:14]} 16... N7g6
{[%clk 0:01:42.6]} 17. Nxg6 {[%clk 0:00:51.2]} 17... hxg6 {[%clk 0:01:42.6]} 18.
Qf4 {[%clk 0:00:51.5]} 18... Rfe8 {[%clk 0:01:35.1]} 19. Re3 {[%clk 0:00:26]}
19... Qf6 {[%clk 0:01:28.9]} 20. Qxf6 {[%clk 0:00:22.2]} 20... gxf6 {[%clk
0:01:29.8]} 21. Be2 {[%clk 0:00:11.4]} 21... Rac8 {[%clk 0:00:49.6]} 22. Rd1
{[%clk 0:00:06.6]} 22... Nc4 {[%clk 0:00:30.4]} 23. Rxe8+ {[%clk 0:00:05.7]}
23... Bxe8 {[%clk 0:00:31.3]} 24. b3 {[%clk 0:00:02.7]} 24... Nd6 {[%clk
0:00:31.1]} 25. Bf3 {[%clk 0:00:02.9]} 25... Ne4 {[%clk 0:00:31.1]} 26. Re1
{[%clk 0:00:03]} 26... f5 {[%clk 0:00:26.5]} 27. g4 {[%clk 0:00:03.2]} 27... Bd7
{[%clk 0:00:26.2]} 28. gxf5 {[%clk 0:00:03.2]} 28... gxf5 {[%clk 0:00:27.1]} 29.
Kh2 {[%clk 0:00:02.4]} 29... Kg7 {[%clk 0:00:27.4]} 30. Rg1+ {[%clk 0:00:02.5]}
30... Kf6 {[%clk 0:00:27.9]} 31. Rf1 {[%clk 0:00:02.1]} 31... Rc3 {[%clk
0:00:26.9]} 32. Bxe4 {[%clk 0:00:01.8]} 32... fxe4 {[%clk 0:00:26.1]} 33. f3
{[%clk 0:00:02.4]} 33... Ke5 {[%clk 0:00:25.9]} 34. Ne2 {[%clk 0:00:02]} 34...
Rc2 {[%clk 0:00:25.1]} 35. Rf2 {[%clk 0:00:01.9]} 35... Bb5 {[%clk 0:00:23.4]}
0-1

[Event "Late-Titled-Tuesday-Blitz-March-12-2024"]
[Site "Chess.com"]
[Date "2024.03.12"]
[Round "1"]
[White "Fonsofan"]
[Black "Ready4abattle"]
[Result "1-0"]
[WhiteElo "2723"]
[BlackElo "2408"]
[TimeControl "180+1"]
[EndTime "14:07:07 PDT"]
[Termination "Fonsofan won by checkmate"]

1. f4 {[%clk 0:02:56.2]} 1... g6 {[%clk 0:02:57.3]} 2. e4 {[%clk 0:02:54.5]}
2... c5 {[%clk 0:02:55.6]} 3. Nf3 {[%clk 0:02:54.1]} 3... Nc6 {[%clk 0:02:55.9]}
4. Nc3 {[%clk 0:02:53.4]} 4... Bg7 {[%clk 0:02:56.2]} 5. Bb5 {[%clk 0:02:53.8]}
5... Nd4 {[%clk 0:02:49.4]} 6. Bc4 {[%clk 0:02:52.8]} 6... e6 {[%clk 0:02:48.9]}
7. d3 {[%clk 0:02:52]} 7... Ne7 {[%clk 0:02:47.6]} 8. O-O {[%clk 0:02:45]} 8...
O-O {[%clk 0:02:47.8]} 9. Nxd4 {[%clk 0:02:41.3]} 9... cxd4 {[%clk 0:02:47.8]}
10. Ne2 {[%clk 0:02:42]} 10... d5 {[%clk 0:02:47.8]} 11. Bb3 {[%clk 0:02:42.7]}
11... Bd7 {[%clk 0:02:40.1]} 12. e5 {[%clk 0:02:33.1]} 12... f6 {[%clk 0:02:40]}
13. Nxd4 {[%clk 0:02:20.2]} 13... fxe5 {[%clk 0:02:39.6]} 14. fxe5 {[%clk
0:02:21.1]} 14... Bxe5 {[%clk 0:02:38.5]} 15. Nf3 {[%clk 0:02:16.9]} 15... Bg7
{[%clk 0:02:32.3]} 16. c3 {[%clk 0:02:15.3]} 16... Qb6+ {[%clk 0:02:26.8]} 17.
Kh1 {[%clk 0:02:06.1]} 17... Nf5 {[%clk 0:02:26.4]} 18. Qe2 {[%clk 0:01:58.7]}
18... Rae8 {[%clk 0:02:25.7]} 19. Bf4 {[%clk 0:01:58.3]} 19... a5 {[%clk
0:02:12.9]} 20. Rae1 {[%clk 0:01:43]} 20... a4 {[%clk 0:02:11.2]} 21. Bd1 {[%clk
0:01:43.3]} 21... Bb5 {[%clk 0:01:51]} 22. Be5 {[%clk 0:01:40.7]} 22... Qa6
{[%clk 0:01:48.9]} 23. Bxg7 {[%clk 0:01:30.3]} 23... Bxd3 {[%clk 0:01:41.7]} 24.
Bxf8 {[%clk 0:01:29.2]} 24... Bxe2 {[%clk 0:01:40.3]} 25. Bxe2 {[%clk
0:01:30.1]} 25... Qb6 {[%clk 0:01:32.9]} 26. Bb4 {[%clk 0:01:22.5]} 26... Ne3
{[%clk 0:01:31.3]} 27. Bd1 {[%clk 0:01:11.8]} 27... Nxf1 {[%clk 0:01:29.3]} 28.
Rxf1 {[%clk 0:01:12.7]} 28... Qb5 {[%clk 0:01:24.7]} 29. Re1 {[%clk 0:01:07.9]}
29... e5 {[%clk 0:01:22.2]} 30. h3 {[%clk 0:00:56.1]} 30... e4 {[%clk
0:01:21.4]} 31. Nd4 {[%clk 0:00:56.1]} 31... Qa6 {[%clk 0:01:14.8]} 32. Be2
{[%clk 0:00:49.8]} 32... Qf6 {[%clk 0:01:09.4]} 33. Rf1 {[%clk 0:00:50.1]} 33...
Qh4 {[%clk 0:01:07.1]} 34. Bb5 {[%clk 0:00:48.7]} 34... Ra8 {[%clk 0:00:51]} 35.
Bd7 {[%clk 0:00:43.7]} 35... Ra6 {[%clk 0:00:43.2]} 36. Be6+ {[%clk 0:00:40]}
36... Kg7 {[%clk 0:00:16.9]} 37. Rf7+ {[%clk 0:00:30.4]} 37... Kh8 {[%clk
0:00:16.7]} 38. Be7 {[%clk 0:00:24.9]} 38... Qe1+ {[%clk 0:00:14.4]} 39. Kh2
{[%clk 0:00:25.4]} 39... Rxe6 {[%clk 0:00:11.3]} 40. Nxe6 {[%clk 0:00:26.3]}
40... Qe3 {[%clk 0:00:08.3]} 41. Bf6+ {[%clk 0:00:24.9]} 41... Kg8 {[%clk
0:00:08.4]} 42. Rf8# {[%clk 0:00:25.3]} 1-0

[Event "Late-Titled-Tuesday-Blitz-March-12-2024"]
[Site "Chess.com"]
[Date "2024.03.12"]
[Round "1"]
[White "ChainedDowntohell"]
[Black "Hrant_ChessMood"]
[Result "0-1"]
[WhiteElo "2534"]
[BlackElo "2985"]
[TimeControl "180+1"]
[EndTime "14:07:08 PDT"]
[Termination "Hrant_ChessMood won on time"]

1. e4 {[%clk 0:02:33]} 1... c6 {[%clk 0:02:48.7]} 2. d4 {[%clk 0:02:30.8]} 2...
d5 {[%clk 0:02:48.7]} 3. exd5 {[%clk 0:02:30.7]} 3... cxd5 {[%clk 0:02:45.6]} 4.
Nf3 {[%clk 0:02:30.3]} 4... Nf6 {[%clk 0:02:44.4]} 5. Bf4 {[%clk 0:02:25.1]}
5... Nc6 {[%clk 0:02:43]} 6. Bb5 {[%clk 0:02:21.2]} 6... Bg4 {[%clk 0:02:39.7]}
7. O-O {[%clk 0:02:17.9]} 7... e6 {[%clk 0:02:39.9]} 8. Nbd2 {[%clk 0:02:16.2]}
8... Bd6 {[%clk 0:02:34.4]} 9. Bxd6 {[%clk 0:02:15.5]} 9... Qxd6 {[%clk
0:02:35.3]} 10. h3 {[%clk 0:02:09.3]} 10... Bh5 {[%clk 0:02:34.6]} 11. c4 {[%clk
0:02:06]} 11... dxc4 {[%clk 0:02:25.8]} 12. g4 {[%clk 0:01:56.4]} 12... Bg6
{[%clk 0:02:18.1]} 13. Nxc4 {[%clk 0:01:29.1]} 13... Qd5 {[%clk 0:02:16.9]} 14.
Bxc6+ {[%clk 0:01:25.4]} 14... bxc6 {[%clk 0:02:16.9]} 15. Ne3 {[%clk
0:01:20.6]} 15... Qb5 {[%clk 0:02:15]} 16. Qb3 {[%clk 0:01:10.4]} 16... O-O
{[%clk 0:02:06.4]} 17. Ne5 {[%clk 0:00:59.2]} 17... Be4 {[%clk 0:01:59.5]} 18.
Rac1 {[%clk 0:00:44.1]} 18... Rfc8 {[%clk 0:01:50.8]} 19. N3c4 {[%clk
0:00:39.3]} 19... Ne8 {[%clk 0:01:25.2]} 20. Qa3 {[%clk 0:00:26.6]} 20... Bd5
{[%clk 0:01:03.3]} 21. Ne3 {[%clk 0:00:16]} 21... Qb7 {[%clk 0:00:54.1]} 22. b3
{[%clk 0:00:15.4]} 22... Nf6 {[%clk 0:00:49.3]} 23. Rfd1 {[%clk 0:00:13.8]}
23... a5 {[%clk 0:00:46.9]} 24. Rc5 {[%clk 0:00:12.7]} 24... h6 {[%clk
0:00:40.4]} 25. Rxa5 {[%clk 0:00:10.1]} 25... Ne4 {[%clk 0:00:40.3]} 26. Rxa8
{[%clk 0:00:01.5]} 26... Rxa8 {[%clk 0:00:41.2]} 27. Qb2 {[%clk 0:00:02.1]}
27... Ng5 {[%clk 0:00:36.1]} 28. Ra1 {[%clk 0:00:02.3]} 28... Nxh3+ {[%clk
0:00:34.4]} 29. Kh2 {[%clk 0:00:03.2]} 29... Ng5 {[%clk 0:00:34.4]} 30. Kg3
{[%clk 0:00:03.9]} 30... f6 {[%clk 0:00:33.4]} 31. Nd3 {[%clk 0:00:03.2]} 31...
Ne4+ {[%clk 0:00:32.2]} 32. Kh2 {[%clk 0:00:02.9]} 32... Qc7+ {[%clk 0:00:31.1]}
33. Kg1 {[%clk 0:00:03.6]} 33... Ng5 {[%clk 0:00:29.8]} 34. f4 {[%clk
0:00:02.1]} 34... Nh3+ {[%clk 0:00:29.7]} 35. Kf1 {[%clk 0:00:02.1]} 35... Be4
{[%clk 0:00:25.1]} 36. Nf2 {[%clk 0:00:01.3]} 36... Qxf4 {[%clk 0:00:24.3]} 0-1